Cogmind - Beta 10.2 *** ADVENTURER MODE // 2022.01.20 @ 18:18:03 Player: xerxia Result: Self-destructed Performance ------------- Evolutions (4) 2000 Regions Visited (5) 1000 Robots Destroyed (1) 5 Value Destroyed (1) 1 Prototype IDs (0) 0 Alien Tech Used (0) 0 Bonus (1325) 1325 TOTAL SCORE: 4331 Bonus ------- Pacifist 1325 Cogmind --------- Core Integrity 487/850 Matter 152/300 Energy 100/100 System Corruption 1% Temperature Cool (0) Movement Core (50) Location -6/Factory Parts ------- > --- POWER (1) -------- (None) > --- PROPULSION (9) --- (None) > --- UTILITY (3) ------ (None) > --- WEAPON (2) ------- (None) > --- INVENTORY (4) ---- Advanced Weight Redist. System Peak State ------------ > --- POWER ------------ Deuterium Engine > --- PROPULSION ------- Medium Treads Improved Medium Treads VTOL Module VTOL Module VTOL Module VTOL Module VTOL Module VTOL Module VTOL Module > --- UTILITY ---------- (None) > --- WEAPON ----------- Power Sword > --- INVENTORY -------- Advanced Weight Redist. System Grenade Launcher [Rating: 31] Favorites ----------- Power Deuterium Engine Engine Deuterium Engine Propulsion VTOL Module Treads Medium Treads Hover Unit Gravmag System Flight Unit VTOL Module Utility None Weapon Power Sword Launcher Grenade Launcher Slashing Weapon Power Sword Build | -11 -10 -9 -8 -7 -6 ------- Run | Scr Mat Mat Mat Fac Fac Slots Evolved 8 | . . 2 2 2 2 Power . | . . . . . . Propulsion 7 | . . 2 2 2 1 Utility 1 | . . . . . 1 Weapon . | . . . . . . Parts Attached 19 | . 3 . 1 10 5 Power 2 | . 1 . . 1 . Engine 2 | . 1 . . 1 . Core . | . . . . . . Reactor . | . . . . . . Propulsion 15 | . 2 . 1 9 3 Treads 2 | . . . . 1 1 Leg . | . . . . . . Wheel . | . . . . . . Hover 4 | . . . 1 3 . Flight 9 | . 2 . . 5 2 Utility . | . . . . . . Device . | . . . . . . Storage . | . . . . . . Processor . | . . . . . . Hackware . | . . . . . . Protection . | . . . . . . Artifact . | . . . . . . Weapon 2 | . . . . . 2 Energy Gun . | . . . . . . Energy Cannon . | . . . . . . Ballistic Gun . | . . . . . . Ballistic Cannon . | . . . . . . Launcher 1 | . . . . . 1 Special Weapon . | . . . . . . Impact Weapon . | . . . . . . Slashing Weapon 1 | . . . . . 1 Piercing Weapon . | . . . . . . Special Melee Weapon . | . . . . . . Unidentified Prototypes . | . . . . . . Parts Lost 18 | . . . 4 2 12 Power 2 | . . . 1 . 1 Propulsion 14 | . . . 3 2 9 Utility . | . . . . . . Weapon 2 | . . . . . 2 Highest Loss Streak 12 | . . . 4 2 12 Average Slot Usage (%) 45 | . 3 33 18 60 52 Engine 4 | . 1 11 4 3 4 Treads 4 | . . . . 6 8 Hover 10 | . . . 1 21 1 Flight 24 | . 1 22 12 27 33 Naked Turns 100 | . 76 . 9 . 15 Heaviest Build 12 | . 3 3 3 9 12 Greatest Support 33 | 3 8 8 11 33 25 Greatest Overweight (x) 1 | . . . . . 1 Average Overweight (x) . | . . . . . . Largest Inventory Capacity 4 | 4 4 4 4 4 4 Average Capacity 4 | 4 4 4 4 4 4 Most Carried 4 | 1 4 1 4 4 4 Average Carried 2 | . 2 1 1 3 1 Final Capacity 4 | 4 4 4 4 4 4 Final Carried 4 | 1 1 1 4 3 1 Class Distribution -------------------- 100% | Mutant Dominant Class ---------------- Mutant | -10/Materials Mutant | -9/Materials Mutant | -8/Materials Mutant | -7/Factory Mutant | -6/Factory Resources | -11 -10 -9 -8 -7 -6 ----------- Run | Scr Mat Mat Mat Fac Fac Matter Collected 130 | 112 . . . . 18 Remotely . | . . . . . . Salvage Created 18 | . . . . . 18 Parts 2 | . . . . . 2 Haulers Intercepted . | . . . . . . Recyclers Shooed . | . . . . . . Parts Field Recycled . | . . . . . . Retrieved Matter . | . . . . . . Parts Self-Destructed . | . . . . . . Prevented . | . . . . . . Kills | -11 -10 -9 -8 -7 -6 ------- Run | Scr Mat Mat Mat Fac Fac Combat Hostiles Destroyed . | . . . . . . Classes Destroyed 1 | . . . . . 1 Worker 1 | . . . . . 1 Best Kill Streak 1 | . . . . . 1 Combat Bots Only . | . . . . . . Max Kills in Single Turn 1 | . . . . . 1 Gunslinging . | . . . . . . Exploded . | . . . . . . Melee . | . . . . . . Uniques/NPCs Destroyed . | . . . . . . Combat | -11 -10 -9 -8 -7 -6 -------- Run | Scr Mat Mat Mat Fac Fac Damage Taken 1889 | 8 151 116 276 287 1051 Core 815 | 8 143 70 193 38 363 Absorbed by Shields . | . . . . . . Core Remaining (%) 75 | 96 39 82 64 94 . Volleys Fired . | . . . . . . Largest . | . . . . . . Hottest . | . . . . . . Shots Fired . | . . . . . . Gun . | . . . . . . Cannon . | . . . . . . Launcher . | . . . . . . Special . | . . . . . . Kinetic . | . . . . . . Thermal . | . . . . . . Explosive . | . . . . . . Electromagnetic . | . . . . . . Robot Hit Streak . | . . . . . . Robot Miss Streak . | . . . . . . Penetration Max . | . . . . . . Secondary Targets . | . . . . . . Shots Hit Robots . | . . . . . . Core Hits 3 | . 1 . . . 2 Critical Hits . | . . . . . . Critical Kills . | . . . . . . Critical Parts Destroyed . | . . . . . . Melee Attacks 1 | . . . . . 1 Impact . | . . . . . . Slashing 1 | . . . . . 1 Piercing . | . . . . . . Sneak Attacks . | . . . . . . Combat Hostiles . | . . . . . . Follow-up Attacks . | . . . . . . Damage Inflicted 61 | 16 19 . . . 26 Guns . | . . . . . . Cannons . | . . . . . . Explosions . | . . . . . . Melee . | . . . . . . Ramming 61 | 16 19 . . . 26 Kinetic . | . . . . . . Thermal . | . . . . . . Explosive . | . . . . . . Electromagnetic . | . . . . . . Impact . | . . . . . . Slashing . | . . . . . . Piercing . | . . . . . . Highest Corruption 1 | . . . . . 1 Average Corruption 1 | . . . . . 1 Corruption Purged . | . . . . . . Overload Shots . | . . . . . . Overflow Damage . | . . . . . . Projectiles . | . . . . . . Explosions . | . . . . . . Melee . | . . . . . . Knockbacks 1 | . 1 . . . . Impact 1 | . 1 . . . . Kinetic . | . . . . . . Secondary . | . . . . . . Self-Inflicted Damage 30 | 8 9 . . . 13 Shots . | . . . . . . Rammed 7 | 1 2 . . . 4 Targets Rammed 7 | 1 2 . . . 4 Kicked . | . . . . . . Crushed . | . . . . . . Highest Temperature 2 | . . . . . 2 Average Temperature 2 | . . . . . 2 Received Heat Transfer 675 | . 102 39 198 . 336 Siege Activations . | . . . . . . Robots Corrupted . | . . . . . . Combat Hostiles . | . . . . . . Parts Fried . | . . . . . . Impact Corruptions . | . . . . . . Robots Melted . | . . . . . . Combat Hostiles . | . . . . . . Parts Melted . | . . . . . . Heat Transferred . | . . . . . . Parts Sabotaged . | . . . . . . Parts Stolen . | . . . . . . Parts Stripped . | . . . . . . Power Chain Reactions . | . . . . . . Missiles Intercepted . | . . . . . . Alert | -11 -10 -9 -8 -7 -6 ------- Run | Scr Mat Mat Mat Fac Fac Peak Influence 193 | . 38 193 104 149 183 Initial 69 | . . 13 69 34 62 Average 73 | . 16 65 86 58 128 Maximum Alert Level . | . . . . . . Low Security (%) 100 | 100 100 100 100 100 100 Level 1 . | . . . . . . Level 2 . | . . . . . . Level 3 . | . . . . . . Level 4 . | . . . . . . Level 5 . | . . . . . . High Security . | . . . . . . Max Security . | . . . . . . Squads Dispatched 7 | . . 2 3 1 1 Investigation 2 | . . . 1 . 1 Extermination . | . . . . . . Reinforcement 5 | . . 2 2 1 . Assault . | . . . . . . Garrison . | . . . . . . Intercept . | . . . . . . Construction Impeded . | . . . . . . Haulers Reinforced . | . . . . . . Stealth | -11 -10 -9 -8 -7 -6 --------- Run | Scr Mat Mat Mat Fac Fac Distress Signals 5 | . . 1 2 1 1 Communications Jammed . | . . . . . . Distress Signals . | . . . . . . Times Spotted 70 | . 7 14 16 12 21 Peak Tracking Total 16 | . 7 11 16 7 11 Tactical Retreats 11 | . . 2 1 3 5 Traps | -11 -10 -9 -8 -7 -6 ------- Run | Scr Mat Mat Mat Fac Fac Traps Triggered 2 | . . . 1 . 1 Indirectly . | . . . . . . Trap Hack Attempts . | . . . . . . Triggered . | . . . . . . Disarmed . | . . . . . . Reprogrammed . | . . . . . . Reused . | . . . . . . Traps Extracted . | . . . . . . Installed . | . . . . . . Triggered . | . . . . . . Machines | -11 -10 -9 -8 -7 -6 ---------- Run | Scr Mat Mat Mat Fac Fac Machines Disabled . | . . . . . . Max in Single Turn . | . . . . . . Machines Sabotaged . | . . . . . . Garrisons Compromised . | . . . . . . Overloaded Fab Kills . | . . . . . . Fab Network Shutdowns . | . . . . . . Hacking | -11 -10 -9 -8 -7 -6 --------- Run | Scr Mat Mat Mat Fac Fac Machines Accessed 3 | . 1 2 . . . Terminals 3 | . 1 2 . . . Fabricators . | . . . . . . Repair Stations . | . . . . . . Recycling Units . | . . . . . . Scanalyzers . | . . . . . . Garrison Access . | . . . . . . Total Hacks 4 | . 2 2 . . . Successful 2 | . 1 1 . . . Failed 2 | . 1 1 . . . Catastrophic 2 | . 1 1 . . . Database Lockouts . | . . . . . . Manual 4 | . 2 2 . . . Terminals 4 | . 2 2 . . . Fabricators . | . . . . . . Repair Stations . | . . . . . . Recycling Units . | . . . . . . Scanalyzers . | . . . . . . Garrison Access . | . . . . . . Terminal Hacks 2 | . 1 1 . . . Level Access Points 2 | . 1 1 . . . Fabricator Hacks . | . . . . . . Repair Station Hacks . | . . . . . . Recycling Unit Hacks . | . . . . . . Scanalyzer . | . . . . . . Garrison Access Hacks . | . . . . . . Unauthorized Hacks . | . . . . . . Terminals . | . . . . . . Fabricators . | . . . . . . Repair Stations . | . . . . . . Recycling Units . | . . . . . . Scanalyzers . | . . . . . . Garrison Access . | . . . . . . Data Cores Recovered . | . . . . . . Used . | . . . . . . Hacking Detections 1 | . . 1 . . . Full Trace Events . | . . . . . . Feedback Events . | . . . . . . Feedback Blocked . | . . . . . . Robot Schematics Acquired . | . . . . . . Robots Built . | . . . . . . Matter . | . . . . . . Time . | . . . . . . Total Robot Build Rating . | . . . . . . Part Schematics Acquired . | . . . . . . Parts Built . | . . . . . . Matter . | . . . . . . Time . | . . . . . . Total Part Build Rating . | . . . . . . Parts Repaired . | . . . . . . Time . | . . . . . . Parts Recycled . | . . . . . . Recycled Matter . | . . . . . . Retrieved Matter . | . . . . . . Retrieved Components . | . . . . . . Parts Scanalyzed . | . . . . . . Part Schematics Acquired . | . . . . . . Parts Damaged . | . . . . . . Bothacking | -11 -10 -9 -8 -7 -6 ------------ Run | Scr Mat Mat Mat Fac Fac Used RIF Installer . | . . . . . . Robots Hacked . | . . . . . . Non-combat . | . . . . . . Combat . | . . . . . . Robot Hacks Applied . | . . . . . . Relay Couplers Released . | . . . . . . Robots Rewired . | . . . . . . Allies Hacked . | . . . . . . Hacks Repelled . | . . . . . . Allies | -11 -10 -9 -8 -7 -6 -------- Run | Scr Mat Mat Mat Fac Fac Total Allies . | . . . . . . Largest Group . | . . . . . . Highest-Rated Group . | . . . . . . Highest-Rated Ally . | . . . . . . Total Orders . | . . . . . . Ally Attacks . | . . . . . . Total Damage . | . . . . . . Kills . | . . . . . . Allies Corrupted . | . . . . . . Allies Melted . | . . . . . . Intel | -11 -10 -9 -8 -7 -6 ------- Run | Scr Mat Mat Mat Fac Fac Robot Analysis Total . | . . . . . . Derelict Logs Recovered . | . . . . . . Drone Launches . | . . . . . . Drone Recoveries . | . . . . . . Exploration | -11 -10 -9 -8 -7 -6 ------------- Run | Scr Mat Mat Mat Fac Fac Turns Passed 709 | 11 84 57 58 317 182 Spaces Moved 1311 | 18 157 154 134 563 285 Core 228 | 18 140 . 11 . 59 Treads . | . . . . . . Legs . | . . . . . . Wheels . | . . . . . . Hover 23 | . . . 9 14 . Flight 1060 | . 17 154 114 549 226 Fastest Speed 34 | 50 37 37 37 34 48 Average Speed 50 | 50 48 37 39 52 58 Slowest Speed 140 | 50 50 37 60 60 140 Overloaded Moves . | . . . . . . Propulsion Burnouts . | . . . . . . Robots Hopped 23 | . . 6 3 7 7 Cave-ins Triggered . | . . . . . . Exploration Rate (%) 22 | 3 43 25 25 22 16 Regions Visited 5 Branch Regions . Pre-discovered Areas . | . . . . . . Known Exits Taken 2 | . 1 1 . . . Unknown Exits Taken 3 | 1 . . 1 1 . Scrap Searched . | . . . . . . Spaces Dug 1 | . . . . . 1 Terrain Destroyed 1 | . . . . . 1 Melee 1 | . . . . . 1 Projectile . | . . . . . . AOE . | . . . . . . Terrain Rammed . | . . . . . . Walls Destroyed . | . . . . . . Machines Disabled . | . . . . . . Actions | -11 -10 -9 -8 -7 -6 --------- Run | Scr Mat Mat Mat Fac Fac Total 1330 | 19 164 147 134 574 292 Wait 5 | . . . . 5 . Move 1261 | 17 156 142 127 548 271 Hop 22 | . . 5 3 7 7 Pick Up 14 | 1 3 . 3 4 3 Fast Attach 6 | . . . 1 5 . Attach 13 | . 3 . . 5 5 Detach . | . . . . . . Swap . | . . . . . . Drop 1 | . . . . . 1 Fire . | . . . . . . Melee 1 | . . . . . 1 Ram 7 | 1 2 . . . 4 Kick . | . . . . . . Crush . | . . . . . . Escape Stasis . | . . . . . . Rewire . | . . . . . . Trap . | . . . . . . Miscellaneous . | . . . . . . Route ------- -11/Scrapyard -10/Materials (discovered 3 exits: *Mat x3) -9/Materials (discovered 3 exits: *Mat x3) -8/Materials -7/Factory -6/Factory History --------- Turn | Location | Event 3 | -11/Scrapyard | Discovered new exit (range 16) 12 | -11/Scrapyard | Entered Materials 24 | -10/Materials | Identified exit to Materials 87 | -10/Materials | Core integrity fell below 50% 96 | -10/Materials | Entered another Materials area 96 | -9/Materials | Evolved 2 slots: Propulsion x2 139 | -9/Materials | Identified exit to Materials 153 | -9/Materials | Entered another Materials area 153 | -8/Materials | Evolved 2 slots: Propulsion x2 196 | -8/Materials | Discovered new exit (range 13) 211 | -8/Materials | Entered Factory 211 | -7/Factory | Evolved 2 slots: Propulsion x2 241 | -7/Factory | Lost 4 parts (1p3n) 314 | -7/Factory | Build established: Mutant 519 | -7/Factory | Discovered new exit (range 9) 528 | -7/Factory | Entered another Factory area 528 | -6/Factory | Evolved 2 slots: Propulsion x1, Utility x1 710 | -6/Factory | Self-destructed Last Messages --------------- 00677_ K-01 Serf collects debris. 00679_ U-05 Engineer lays Concrete. 00679_ Slammed into K-01 Serf. 00679_ K-01 Serf destroyed. 00680_ Acquired 18 matter. 00680_ W-25 Informer distress signal alerts nearby ally. 00680_ K-01 Serf collects debris. 00683_ K-01 Serf cleans the Power Conduit. 00685_ K-01 Serf collects debris. 00687_ K-01 Serf cleans the Nuclear Reactor. 00687_ Slammed into G-50 Soldier. 00688_ Power Conduit explodes. 00688_ W-25 Informer destroyed. 00688_ Power Conduit explodes. 00688_ U-05 Engineer destroyed. 00688_ Slammed into G-50 Soldier. 00689_ K-01 Serf collects debris. 00690_ Imp. Medium Treads destroyed. 00692_ K-01 Serf destroyed. 00695_ Power Sword destroyed. Map ----- +----------------------------------------------------+ | | | | | | | | | | | | | | | | | | | | | | | | | | | | | | | | | | | | | | | | | | | | | ???????????????##################????????????????? | | ???????????????""" #????????????????? | | ?????????????# "Y" ] #????????????????? | | ?????????????# @ #########????????? | | ?????????????#! /s s p #????????? | | ?????????????# """ """ """ """ ####### #????????? | | ??????????????? """ """ """ """ #?????# #????????? | | ????????????????""" """ """ """ #?????# #????????? | | ????????????????? #?????# #????????? | | ??????????????????#####+############### #????????? | | ????????????????????# !!= #????????? | | ????????????????????# != #????????? | | ????????????????????# """ != " " +????????? | | ????????????????????# """ " " #????????? | | ????????????????????+ """ " " +????????? | | ????????????????????# " " #????????? | | ????????????????????# "" " " #????????? | | ????????????????????# "F = " " #????????? | | ????????????????????# """ %! " " #????????? | | ????????????????????+ """ = " " #????????? | | ????????????????????# " " #????????? | | ????????????????????+ #????????? | | ????????????????????###+#### #????????? | | ???????????????????????????# #????????? | | ???????????????????????????" #????????? | | ???????????????????????????" #????????? | | ??????????????????????????"" " ??????? | | ????###########???#???????"" " ???????? | +----------------------------------------------------+ Best States ------------- Heat Dissipation 37 Energy Generation 14 Energy Capacity 275 Matter Stores 223 Matter Capacity 300 Sight Range 16 Terrain Scan Density 10 Resistance: KI 20 Resistance: TH 20 Resistance: EX 20 Resistance: EM 20 Resistance: I 20 Resistance: S 20 Resistance: P 20 Evasion (%) 62 Offensive Hacking 10 Item Schematics ----------------- None Robot Schematics ------------------ None Fabricated ------------ Nothing Alien Tech Used ----------------- None Achievements -------------- None Challenges ------------ None Game ------ Seed HoverSigixCharger Manual? 0 Play Time 00:17:16 Cumulative 48.2 hours Start 2022.01.20 @ 18:03:03 End 2022.01.20 @ 18:18:03 Sessions 1 Manual Loads 0 Difficulty Adventurer Special Mode None Game No. 58 Rogue 12 Adventurer 4 Explorer 42 Win Type - Total 4 Types 4/0/0/0/0/0/0/0/0 Lore% 29 Gallery% 45 Achievement% 36 Wizard Run 0 Options --------- ASCII 0 Keyboard 0 Movement Numpad Keybinds 0 Fullscreen 1 Font 12/Smallcaps Map View 83x54 Tactical HUD 1 Map Filters NONE Filters NONE Steam 1 RUN: e83b0882-c84d-4528-b0f3-0ab772cf7104